bitfinex/quotes_BTCUSD_20251209
["timestamp","ask_amount","ask_price","bid_price","bid_amount"]
[1765238401861,0.00623715,90676.0,90675.0,0.54296102]
[1765238404135,0.04754715,90676.0,90675.0,0.20004702]
[1765238404273,0.04754715,90676.0,90675.0,0.15144602]
[1765238404493,0.04754715,90676.0,90675.0,0.14077802]
[1765238404738,0.04754715,90676.0,90675.0,0.14204702]
[1765238404929,0.04754715,90676.0,90675.0,0.03411402]
[1765238405134,0.04916002,90676.0,90675.0,0.03411402]
[1765238405331,0.04916002,90676.0,90675.0,0.001]
[1765238408239,0.01102888,90671.0,90669.0,0.108528]
[1765238408453,0.27417012,90670.0,90669.0,0.108528]
[1765238408860,0.27417012,90670.0,90668.0,0.01]
[1765238409221,0.04131,90669.0,90668.0,0.01]
[1765238411203,0.26698156,90670.0,90668.0,0.01]
[1765238411204,0.03312144,90670.0,90668.0,0.01]
[1765238411370,0.22057998,90671.0,90670.0,1.169941]
[1765238411570,0.23160624,90672.0,90670.0,0.255373]
[1765238412205,0.01102864,90673.0,90670.0,0.255373]
[1765238412408,0.01649,90671.0,90670.0,0.255373]
[1765238412636,0.01649,90671.0,90670.0,0.258373]
[1765238412830,0.04051,90671.0,90670.0,0.258373]
[1765238412998,0.04051,90671.0,90670.0,0.255373]
[1765238413198,0.04051,90671.0,90670.0,0.260373]
[1765238413857,0.04051,90671.0,90670.0,0.262373]
[1765238414011,0.04051,90671.0,90670.0,0.181875]
[1765238414216,0.04051,90671.0,90670.0,0.166478]
[1765238414421,0.04051,90671.0,90670.0,0.161478]
[1765238414816,0.04151,90671.0,90670.0,0.168478]
[1765238415025,0.04312287,90671.0,90670.0,0.161478]
[1765238415223,0.04312287,90671.0,90670.0,0.167478]
[1765238415426,0.06252299,90669.0,90668.0,0.01]
[1765238415627,0.22064339,90644.0,90643.0,0.150704]
[1765238415829,0.22064339,90644.0,90643.0,0.15101259]
[1765238417089,0.22064339,90644.0,90643.0,0.15201259]
[1765238417521,0.22064339,90644.0,90643.0,0.19122259]
[1765238417720,0.22164339,90644.0,90643.0,0.19622259]
[1765238418066,0.23813339,90644.0,90643.0,0.15701259]
[1765238418273,0.22164339,90644.0,90643.0,0.15701259]
[1765238418428,0.001,90644.0,90643.0,0.15701259]
[1765238418628,0.22164339,90644.0,90643.0,0.15701259]
[1765238420674,0.001,90644.0,90643.0,0.17254259]
[1765238421070,0.001,90644.0,90643.0,0.19622259]
[1765238421918,0.001,90644.0,90643.0,0.17254259]
[1765238424218,0.001,90644.0,90643.0,0.19622259]
[1765238424419,0.001,90644.0,90643.0,0.15701259]
[1765238424620,0.05277,90644.0,90643.0,0.00630859]
[1765238427068,0.01226,90644.0,90643.0,0.00630859]
[1765238429990,0.15886,90644.0,90643.0,0.00630859]
[1765238432227,0.19937,90644.0,90643.0,0.00630859]
[1765238433239,0.17535,90644.0,90643.0,0.00630859]
[1765238434699,0.19937,90644.0,90643.0,0.00630859]
[1765238435399,0.15886,90644.0,90643.0,0.00630859]
[1765238435802,0.18288,90644.0,90643.0,0.00630859]
[1765238436203,0.15886,90644.0,90643.0,0.00630859]
[1765238436571,0.001,90644.0,90643.0,2.25830942]
[1765238436771,0.001,90644.0,90643.0,2.03766359]
[1765238437119,0.001,90644.0,90643.0,1.59289354]
[1765238437522,0.001,90644.0,90643.0,1.67392243]
[1765238437928,0.01302898,90670.0,90643.0,1.66792243]
[1765238438111,0.00099999,90670.0,90669.0,1.921381]
[1765238438319,0.00099999,90670.0,90669.0,1.693569]
[1765238438509,0.00099999,90670.0,90669.0,1.72668518]
[1765238438713,0.00099999,90670.0,90669.0,1.21028718]
[1765238439515,0.00099999,90670.0,90669.0,1.47007973]
[1765238440511,0.00399999,90670.0,90669.0,1.47107973]
[1765238441164,0.00461287,90670.0,90669.0,0.21154218]
[1765238441365,0.04512287,90670.0,90669.0,0.03411618]
[1765238441542,0.04512287,90670.0,90669.0,0.001]
[1765238442587,0.07269538,90670.0,90669.0,0.001]
[1765238442793,0.04512287,90670.0,90669.0,0.001]
[1765238446408,0.21119678,90670.0,90669.0,0.001]
[1765238446608,0.21929538,90670.0,90669.0,0.001]
[1765238447655,0.23108538,90670.0,90669.0,0.001]
[1765238449769,0.26420799,90670.0,90669.0,0.001]
[1765238450135,0.23663548,90670.0,90669.0,0.001]
[1765238450380,0.01102961,90665.0,90662.0,0.07720517]
[1765238450541,0.02707,90663.0,90662.0,0.07720517]
[1765238451003,0.05116,90663.0,90662.0,0.07720517]
[1765238451426,0.01103107,90653.0,90650.0,0.03312261]
[1765238451631,0.22064339,90644.0,90643.0,0.00030859]
[1765238451951,0.22064339,90644.0,90643.0,0.26782759]
[1765238452182,0.22064339,90644.0,90643.0,0.30846759]
[1765238452931,0.22064339,90644.0,90643.0,0.28411759]
[1765238453155,0.22164339,90644.0,90643.0,0.28611759]
[1765238453370,0.22164339,90644.0,90643.0,0.28711759]
[1765238453985,0.22164339,90644.0,90643.0,0.27082759]
[1765238454189,0.26101339,90644.0,90643.0,0.27082759]
[1765238455465,0.23692339,90644.0,90643.0,0.27082759]
[1765238457289,0.22164339,90644.0,90643.0,0.27082759]
[1765238460550,0.23692339,90644.0,90643.0,0.27082759]
[1765238460755,0.22164339,90644.0,90643.0,0.27082759]
[1765238461105,0.001,90644.0,90643.0,0.87255342]
[1765238461434,0.001,90644.0,90643.0,0.9056768]
[1765238463465,0.001,90644.0,90643.0,0.87255342]
[1765238464595,0.00199998,90670.0,90662.0,0.54359958]
[1765238464808,0.00023715,90676.0,90662.0,2.60626458]
[1765238465010,0.00023715,90676.0,90675.0,2.21271296]
[1765238465176,0.00023715,90676.0,90675.0,2.020025]
[1765238465352,0.00023715,90676.0,90675.0,1.812308]
[1765238465704,0.00023715,90676.0,90675.0,1.88951317]
[1765238466435,0.00423715,90676.0,90675.0,1.89051317]
[1765238466672,0.00523715,90676.0,90675.0,1.89051317]
[1765238467541,0.00523715,90676.0,90675.0,2.11108113]
[1765238473110,0.00523715,90676.0,90675.0,1.89051317]
[1765238474103,0.00523715,90676.0,90675.0,2.21351317]
[1765238474904,0.00423715,90676.0,90675.0,2.21351317]
[1765238475309,0.00023715,90676.0,90675.0,2.23450917]
[1765238475510,0.00023715,90676.0,90675.0,2.23550917]
[1765238475709,0.00223715,90676.0,90675.0,2.23550917]
[1765238478702,0.01102389,90712.0,90708.0,2.014141]
[1765238478853,0.01102389,90712.0,90711.0,0.323]
[1765238479056,0.00161287,90715.0,90712.0,0.78621589]
[1765238479249,0.00161287,90715.0,90714.0,0.02743]
[1765238479684,0.00161287,90715.0,90714.0,0.05118]
[1765238479986,0.00161287,90715.0,90714.0,0.15038117]
[1765238480748,0.00461287,90715.0,90714.0,0.15138117]
[1765238481373,0.00461287,90715.0,90714.0,0.6948543]
[1765238481938,0.00461287,90715.0,90714.0,0.47438117]
[1765238482550,0.00461287,90715.0,90714.0,0.45238517]
[1765238482804,0.003,90715.0,90714.0,0.45238517]
[1765238483363,0.003,90715.0,90714.0,0.47438117]
[1765238483814,0.003,90715.0,90714.0,0.62079217]
[1765238484604,0.001,90715.0,90714.0,0.61979217]
[1765238484807,0.001,90715.0,90714.0,0.62079217]
[1765238484986,0.005,90715.0,90714.0,0.62079217]
[1765238485187,0.00615552,90715.0,90714.0,0.62079217]
[1765238485447,0.00715552,90715.0,90714.0,0.62079217]
[1765238486234,0.00215552,90715.0,90714.0,0.61990945]
[1765238486456,0.00415552,90715.0,90714.0,0.59891345]
[1765238486657,0.00115552,90715.0,90714.0,0.59791345]
[1765238486861,0.00215552,90715.0,90714.0,0.59791345]
[1765238487002,0.00515552,90715.0,90714.0,0.59891345]
[1765238487833,0.00515552,90715.0,90714.0,0.62090945]
[1765238496282,0.00515552,90715.0,90714.0,0.57516345]
[1765238496489,0.01515552,90715.0,90714.0,0.57516345]
[1765238496898,0.01515552,90715.0,90714.0,0.59891345]
[1765238497409,0.01515552,90715.0,90714.0,0.62090945]
[1765238505666,0.01515552,90715.0,90714.0,0.59891345]
[1765238505873,0.01515552,90715.0,90714.0,0.62090945]
[1765238508704,0.01415552,90715.0,90714.0,0.61990945]
[1765238508908,0.01215552,90715.0,90714.0,0.61990945]
[1765238509088,0.01415552,90715.0,90714.0,0.62090945]
[1765238509507,0.01115552,90715.0,90714.0,0.61990945]
[1765238509682,0.01215552,90715.0,90714.0,0.62090945]
[1765238509867,0.01215552,90715.0,90714.0,0.63830945]
[1765238515251,0.01215552,90715.0,90714.0,0.83678658]
[1765238516129,0.01215552,90715.0,90714.0,0.61631345]
[1765238519774,0.01215552,90715.0,90714.0,0.63830945]
[1765238522496,0.01215552,90715.0,90714.0,0.61631345]
[1765238522697,0.01215552,90715.0,90714.0,0.63830945]
[1765238529782,0.00158187,90715.0,90714.0,0.63830945]
[1765238530842,0.00158187,90715.0,90714.0,0.63930945]
[1765238531271,0.00158187,90715.0,90714.0,0.70083244]
[1765238531484,0.0004,90730.0,90729.0,0.56543268]
[1765238531685,0.0004,90730.0,90729.0,2.59125768]
[1765238532032,0.0004,90730.0,90729.0,2.61552768]
[1765238532969,0.0024,90730.0,90729.0,2.61652768]
[1765238534930,0.0024,90730.0,90729.0,2.69856299]
[1765238537159,0.00284427,90730.0,90729.0,2.69856299]
[1765238538848,0.01284427,90730.0,90729.0,2.69856299]
[1765238540185,0.01284427,90730.0,90729.0,2.61652768]
[1765238540408,0.01284427,90730.0,90729.0,2.49988968]
[1765238543335,0.01284427,90730.0,90729.0,2.45808968]
[1765238543561,0.01284427,90730.0,90729.0,2.48008568]
[1765238544195,0.01284427,90730.0,90729.0,2.45808968]
[1765238545017,0.01284427,90730.0,90729.0,1.805857]
[1765238545223,0.01284427,90730.0,90729.0,0.464934]
[1765238546471,0.23489139,90730.0,90729.0,0.464934]
[1765238546864,0.27334139,90730.0,90729.0,0.141934]
[1765238547161,0.23489139,90730.0,90729.0,0.141934]
[1765238547567,0.23289139,90730.0,90729.0,0.140934]
[1765238547787,0.23389139,90730.0,90729.0,0.140934]
[1765238548001,0.23689139,90730.0,90729.0,0.141934]
[1765238549139,0.01645714,90730.0,90729.0,0.20279]
[1765238551290,0.01645714,90730.0,90729.0,0.17935]
[1765238554084,0.01645714,90730.0,90729.0,0.20279]
[1765238554743,0.01645714,90730.0,90729.0,0.20879679]
[1765238554938,0.01645714,90730.0,90729.0,0.20279]
[1765238555351,0.01635714,90730.0,90729.0,0.20279]
[1765238556967,0.23679139,90730.0,90729.0,0.20279]
[1765238557371,0.01635714,90730.0,90729.0,0.20279]
[1765238557874,0.01474427,90730.0,90729.0,0.464934]
[1765238558102,0.01474427,90730.0,90729.0,0.54213917]
[1765238558103,0.01461489,90730.0,90729.0,0.54213917]
[1765238560374,0.01622776,90730.0,90729.0,0.54213917]
[1765238562362,0.01622776,90730.0,90729.0,0.58085917]
[1765238562862,0.01461489,90730.0,90729.0,0.60285517]
[1765238578721,0.01161489,90730.0,90729.0,0.60185517]
[1765238579057,0.01061489,90730.0,90729.0,0.60285517]
[1765238579252,0.01161489,90730.0,90729.0,0.60285517]
[1765238583293,0.01161489,90730.0,90729.0,0.58085917]
[1765238586109,0.01161489,90730.0,90729.0,0.54213917]
[1765238586480,0.01322776,90730.0,90729.0,0.54213917]
[1765238586804,0.05405776,90730.0,90729.0,0.07820517]
[1765238587209,0.05405776,90730.0,90729.0,0.20687717]
[1765238587813,0.05505776,90730.0,90729.0,0.20687717]
[1765238588030,0.05405776,90730.0,90729.0,0.20587717]
[1765238588430,0.05705776,90730.0,90729.0,0.20687717]
[1765238588630,0.05705776,90730.0,90729.0,0.07820517]
[1765238588875,0.05705776,90730.0,90729.0,0.21567717]
[1765238590185,0.20365776,90730.0,90729.0,0.21567717]
[1765238590798,0.16282776,90730.0,90729.0,0.21567717]
[1765238593068,0.16121489,90730.0,90729.0,0.25436717]
[1765238593269,0.16121489,90730.0,90729.0,0.57736717]
[1765238593484,0.16121489,90730.0,90729.0,0.59936317]
[1765238596222,0.01061489,90730.0,90729.0,0.59836317]
[1765238596561,0.01161489,90730.0,90729.0,0.60336317]
[1765238596817,0.01161489,90730.0,90729.0,0.56467317]
[1765238597019,0.01161489,90730.0,90729.0,0.54267717]
[1765238597600,0.01161489,90730.0,90729.0,0.77490385]
[1765238597923,0.01161489,90730.0,90729.0,0.81259385]
[1765238598304,0.01061489,90730.0,90729.0,0.86803677]
[1765238598503,0.01061489,90730.0,90729.0,0.86903677]
[1765238598708,0.01361489,90730.0,90729.0,0.86903677]
[1765238599359,0.01461489,90730.0,90729.0,0.86903677]
[1765238600905,0.01461489,90730.0,90729.0,0.80959385]
[1765238601688,0.01461489,90730.0,90729.0,0.86903677]
[1765238602783,0.01461489,90730.0,90729.0,0.80959385]
[1765238602978,0.01461489,90730.0,90729.0,0.56548717]
[1765238603199,0.01461489,90730.0,90729.0,0.78592385]
[1765238603809,0.01461489,90730.0,90729.0,0.56548717]
[1765238604546,0.01461489,90730.0,90729.0,0.78592385]
[1765238604750,0.01461489,90730.0,90729.0,0.80959385]
[1765238605255,0.01461489,90730.0,90729.0,0.55046717]
[1765238605455,0.01461489,90730.0,90729.0,0.53867717]
[1765238611476,0.01461489,90730.0,90729.0,0.56234717]
[1765238611833,0.23504914,90730.0,90729.0,0.53867717]
[1765238612029,0.25194201,90730.0,90729.0,0.53867717]
[1765238612349,0.27486201,90730.0,90729.0,0.53867717]
[1765238612750,0.27486201,90730.0,90729.0,0.55810717]
[1765238612962,0.42146201,90730.0,90729.0,0.07820517]
[1765238613496,0.42146201,90730.0,90729.0,0.001]
[1765238613903,0.22045369,90722.0,90721.0,0.498766]
[1765238614111,0.22046827,90716.0,90714.0,0.07732245]
[1765238614313,0.02815287,90715.0,90714.0,0.07732245]
[1765238614507,0.02815287,90715.0,90714.0,0.00011728]
[1765238614508,0.05107287,90715.0,90714.0,0.00011728]
[1765238615550,0.05407287,90715.0,90714.0,0.00111728]
[1765238615760,0.07807287,90715.0,90714.0,0.00111728]
[1765238615957,0.05607287,90715.0,90714.0,0.00111728]
[1765238616384,0.05407287,90715.0,90714.0,0.00111728]
[1765238616551,0.05107287,90715.0,90714.0,0.00011728]
[1765238616888,0.05207287,90715.0,90714.0,0.00611728]
[1765238617273,0.05107287,90715.0,90714.0,0.00011728]
[1765238617441,0.05207287,90715.0,90714.0,0.00211728]
[1765238619901,0.19867287,90715.0,90714.0,0.00211728]
[1765238620681,0.16047287,90715.0,90714.0,0.00211728]
[1765238620885,0.19867287,90715.0,90714.0,0.00211728]
[1765238622515,0.21746132,90715.0,90714.0,0.00211728]
[1765238622761,0.17926132,90715.0,90714.0,0.00211728]
[1765238623351,0.16047287,90715.0,90714.0,0.00211728]
[1765238623577,0.14921287,90715.0,90714.0,0.12143928]
[1765238624546,0.18945287,90715.0,90714.0,0.12143928]
[1765238625452,0.16458287,90715.0,90714.0,0.12143928]
[1765238626783,0.18945287,90715.0,90714.0,0.12143928]
[1765238627169,0.14921287,90715.0,90714.0,0.00211728]
[1765238627386,0.14921287,90715.0,90714.0,0.72847328]
[1765238628144,0.1476,90715.0,90714.0,0.74464328]
[1765238628278,0.1476,90715.0,90714.0,0.76792328]
[1765238628461,0.1476,90715.0,90714.0,0.78991928]
[1765238628661,0.1476,90715.0,90714.0,0.76663928]
[1765238629083,0.1476,90715.0,90714.0,0.78991928]
[1765238629301,0.1466,90715.0,90714.0,0.78791928]
[1765238629702,0.1476,90715.0,90714.0,0.79291928]
[1765238629965,0.1476,90715.0,90714.0,0.73147328]
[1765238630270,0.3670707,90715.0,90714.0,0.72747328]
[1765238630716,0.3700707,90715.0,90714.0,0.72747328]
[1765238631016,0.3710707,90715.0,90714.0,0.72747328]
[1765238631418,0.3710707,90715.0,90714.0,0.47259228]
[1765238632891,0.37268357,90715.0,90714.0,0.47259228]
[1765238633092,0.37268357,90715.0,90714.0,0.44286028]
[1765238633518,0.15221287,90715.0,90714.0,0.45903028]
[1765238633752,0.15221287,90715.0,90714.0,0.48231028]
[1765238633944,0.1506,90715.0,90714.0,0.48231028]
[1765238634144,0.1506,90715.0,90714.0,0.50430628]
[1765238634322,0.1506,90715.0,90714.0,0.44286028]
[1765238635997,0.3710707,90715.0,90714.0,0.44286028]
[1765238637051,0.1506,90715.0,90714.0,0.44286028]
[1765238637670,0.1506,90715.0,90714.0,0.67950341]
[1765238637886,0.1506,90715.0,90714.0,0.70278341]
[1765238638861,0.1506,90715.0,90714.0,0.48231028]
[1765238640605,0.1506,90715.0,90714.0,0.44286028]
[1765238641180,0.1506,90715.0,90714.0,0.48384028]
[1765238641518,0.1506,90715.0,90714.0,0.44286028]
[1765238642015,0.1506,90715.0,90714.0,0.39243728]
[1765238643065,0.15035175,90715.0,90714.0,0.39243728]
[1765238643353,0.14861441,90715.0,90714.0,0.39243728]
[1765238643705,0.14861441,90715.0,90714.0,0.43341728]
[1765238643913,0.14861441,90715.0,90714.0,0.75641728]
[1765238644116,0.004,90715.0,90714.0,0.77816514]
[1765238644537,0.004,90715.0,90714.0,0.81125987]
[1765238645045,0.00023696,90723.0,90722.0,2.337141]
[1765238645227,0.14461441,90729.0,90728.0,0.038496]
[1765238645228,0.144153,90729.0,90728.0,0.038496]
[1765238645402,0.144153,90729.0,90728.0,2.353641]
[1765238645598,0.144153,90729.0,90728.0,2.378121]
[1765238646113,0.144153,90729.0,90728.0,2.315145]
[1765238646502,0.147153,90729.0,90728.0,2.332645]
[1765238646701,0.148153,90729.0,90728.0,2.332645]
[1765238646937,0.148153,90729.0,90728.0,2.357125]
[1765238647785,0.148153,90729.0,90728.0,2.57756411]
[1765238653267,0.148153,90729.0,90728.0,2.357125]
[1765238653606,0.148153,90729.0,90728.0,2.332645]
[1765238654530,0.148153,90729.0,90728.0,2.355975]
[1765238654738,0.36858968,90729.0,90728.0,2.355975]
[1765238654939,0.148153,90729.0,90728.0,2.355975]
[1765238655436,0.148153,90729.0,90728.0,2.362565]
[1765238657420,0.36858968,90729.0,90728.0,0.426509]
[1765238657617,0.37020255,90729.0,90728.0,0.426509]
[1765238657802,0.41018255,90729.0,90728.0,0.001]
[1765238658007,0.34595254,90729.0,90728.0,0.001]
[1765238658703,0.22049744,90704.0,90703.0,0.23954217]
[1765238658906,0.22055697,90704.0,90703.0,0.24869217]
[1765238659129,0.23713697,90704.0,90703.0,0.20047617]
[1765238659448,0.22050959,90699.0,90697.0,0.0784389]
[1765238659657,0.22050959,90699.0,90697.0,0.00123373]
[1765238659658,0.02953287,90698.0,90697.0,0.00123373]
[1765238659870,0.05293287,90698.0,90697.0,0.00123373]
[1765238660218,0.22060202,90661.0,90653.0,0.01233]
[1765238660424,0.22060932,90658.0,90655.0,0.0174]
[1765238660632,0.22060932,90658.0,90657.0,0.50868]
[1765238661032,0.23163722,90659.0,90658.0,0.323]
[1765238661234,0.01102997,90662.0,90660.0,0.323]
[1765238661494,0.01102997,90662.0,90661.0,0.33512]
[1765238661495,0.2316307,90662.0,90661.0,0.33512]
[1765238661906,0.22058815,90667.0,90663.0,0.879467]
[1765238662116,0.01102912,90669.0,90661.0,0.0396801]
[1765238662117,0.23162445,90664.0,90661.0,0.255643]
[1765238662285,0.22059958,90662.0,90661.0,0.255643]
[1765238662488,0.002,90662.0,90661.0,0.255643]
[1765238663574,0.2205879,90667.0,90661.0,0.2666731]
[1765238663770,0.2205879,90667.0,90662.0,0.70813897]
[1765238663976,0.01402949,90666.0,90664.0,0.676173]
[1765238664327,0.22059854,90663.0,90661.0,0.655664]
[1765238664507,0.002,90662.0,90661.0,0.656664]
[1765238664716,0.01102973,90664.0,90661.0,0.6666941]
[1765238665002,0.01102973,90664.0,90662.0,0.654233]
[1765238665223,0.01102961,90665.0,90662.0,0.654233]
[1765238665387,0.23162309,90665.0,90662.0,0.654233]
[1765238665589,0.22059958,90662.0,90661.0,0.107465]
[1765238665816,0.22059958,90662.0,90661.0,0.210729]
[1765238666590,0.22259958,90662.0,90661.0,0.211729]
[1765238667429,0.22359958,90662.0,90661.0,0.211729]
[1765238668045,0.24017958,90662.0,90661.0,0.178641]
[1765238668245,0.24017958,90662.0,90661.0,0.107142]
[1765238668452,0.24017958,90662.0,90661.0,0.116965]
[1765238668664,0.26357958,90662.0,90661.0,0.001]
[1765238668829,0.26357958,90662.0,90661.0,0.199249]
[1765238670046,0.24017958,90662.0,90661.0,0.199249]
[1765238671052,0.22359958,90662.0,90661.0,0.199249]
[1765238671255,0.22359958,90662.0,90661.0,0.20031624]
[1765238671536,0.003,90662.0,90661.0,0.20031624]
[1765238672491,0.003,90662.0,90661.0,0.26196224]
[1765238677197,0.003,90662.0,90661.0,0.20031624]
[1765238677396,0.003,90662.0,90661.0,0.21775624]
[1765238677715,0.003,90662.0,90661.0,0.27940224]
[1765238680132,0.003,90662.0,90661.0,0.23407624]
[1765238680339,0.003,90662.0,90661.0,0.21775624]
[1765238682268,0.003,90662.0,90661.0,0.43835826]
[1765238682473,0.003,90662.0,90661.0,0.21775624]
[1765238682980,0.22359958,90662.0,90661.0,0.21775624]
[1765238683174,0.003,90662.0,90661.0,0.21775624]
[1765238684602,0.003,90662.0,90661.0,0.25788624]
[1765238686026,0.003,90662.0,90661.0,0.21775624]
[1765238688573,0.003,90662.0,90661.0,0.43835826]
[1765238689037,0.003,90662.0,90661.0,0.21775624]
[1765238689406,0.003,90662.0,90661.0,0.43835826]
[1765238690429,0.003,90662.0,90661.0,0.21775624]
[1765238692000,0.003,90662.0,90661.0,0.60288224]
[1765238692209,0.003,90662.0,90661.0,0.63599644]
[1765238693064,0.144153,90665.0,90664.0,2.56559072]
[1765238693259,0.144153,90665.0,90664.0,2.58177072]
[1765238693466,0.144153,90665.0,90664.0,2.60572072]
[1765238693670,0.144153,90665.0,90664.0,2.63883492]
[1765238694091,0.00199998,90670.0,90669.0,2.54358255]
[1765238694264,0.00099999,90670.0,90669.0,2.58175855]
[1765238694465,0.00099999,90670.0,90669.0,2.60570855]
[1765238696195,0.00099999,90670.0,90669.0,2.60670855]
[1765238696514,0.00199999,90670.0,90669.0,2.60670855]
[1765238697813,0.001,90670.0,90669.0,2.60670855]
[1765238698230,0.001,90670.0,90669.0,2.63981994]
[1765238699177,0.14615298,90680.0,90679.0,2.56555423]
[1765238699347,0.14515299,90680.0,90679.0,1.434514]
[1765238699542,0.144153,90680.0,90679.0,0.717604]
[1765238700311,0.144153,90680.0,90679.0,0.683493]
[1765238700511,0.146153,90680.0,90679.0,0.83741423]
[1765238701368,0.147153,90680.0,90679.0,0.83741423]
[1765238701978,0.147153,90680.0,90679.0,0.87632423]
[1765238701979,0.144153,90680.0,90679.0,0.87632423]
[1765238702123,0.145153,90680.0,90679.0,0.89832023]
[1765238702323,0.149153,90680.0,90679.0,0.89932023]
[1765238703274,0.145153,90680.0,90679.0,0.89832023]
[1765238703419,0.147153,90680.0,90679.0,0.89932023]
[1765238703624,0.146153,90680.0,90679.0,0.89832023]
[1765238703875,0.147153,90680.0,90679.0,0.89832023]
[1765238704077,0.005,90680.0,90679.0,0.89932023]
[1765238704461,0.004,90680.0,90679.0,0.89932023]
[1765238704669,0.004,90680.0,90679.0,0.89985375]
[1765238705307,0.00199998,90690.0,90689.0,0.22053391]
[1765238705600,0.00099999,90690.0,90689.0,1.85488391]
[1765238705765,0.00099999,90690.0,90689.0,1.87916391]
[1765238706589,0.00107653,90690.0,90689.0,1.83762491]
[1765238706806,0.00407653,90690.0,90689.0,1.83862491]
[1765238707133,0.00407654,90690.0,90689.0,2.18362091]
[1765238708098,0.00307654,90690.0,90689.0,2.18362091]
[1765238708504,7.654e-05,90690.0,90689.0,2.18262091]
[1765238708925,7.654e-05,90690.0,90689.0,2.18362091]
[1765238708926,0.00107654,90690.0,90689.0,2.18362091]
[1765238710864,0.00107654,90690.0,90689.0,2.183858]
[1765238714080,0.00107654,90690.0,90689.0,1.061611]
[1765238714322,0.00107654,90690.0,90689.0,0.18704309]
[1765238714454,0.01922941,90690.0,90689.0,0.22312109]
[1765238714652,0.04178941,90690.0,90689.0,0.22312109]
[1765238715093,0.01922941,90690.0,90689.0,0.22312109]
[1765238715292,0.00268941,90690.0,90689.0,0.20606709]
[1765238715753,0.00107654,90690.0,90689.0,0.59004309]
[1765238722787,0.144153,90710.0,90709.0,0.021996]
[1765238722984,0.144153,90722.0,90721.0,2.54345612]
[1765238723181,0.14422968,90722.0,90721.0,2.58289212]
[1765238723544,0.14422968,90722.0,90721.0,2.61131612]
[1765238723663,0.14422968,90722.0,90721.0,2.63331212]
[1765238724820,0.14722968,90722.0,90721.0,2.63431212]
[1765238726041,0.14722968,90722.0,90721.0,1.65229]
[1765238726240,0.14722968,90722.0,90721.0,1.591737]
[1765238727506,0.14722968,90722.0,90721.0,1.556979]
[1765238727712,0.14722968,90722.0,90721.0,1.47911]
[1765238727915,0.17639926,90722.0,90721.0,0.551133]
[1765238728131,0.14884255,90722.0,90721.0,0.551133]
[1765238731497,0.14884255,90722.0,90721.0,0.601553]
[1765238731678,0.14722968,90722.0,90721.0,0.623549]
[1765238734139,0.14722968,90722.0,90721.0,0.600179]
[1765238735335,0.14722968,90722.0,90721.0,0.623549]
[1765238740740,0.14722968,90722.0,90721.0,0.601553]
[1765238741341,0.14722968,90722.0,90721.0,0.623549]
[1765238744644,0.00307668,90722.0,90721.0,0.623549]
[1765238749149,7.668e-05,90722.0,90721.0,0.70467423]
[1765238749616,7.668e-05,90722.0,90721.0,0.70567423]
[1765238751945,7.668e-05,90722.0,90721.0,0.71008613]
[1765238752550,7.668e-05,90722.0,90721.0,0.68809013]
[1765238752723,7.668e-05,90722.0,90721.0,0.70567423]
[1765238752929,7.668e-05,90722.0,90721.0,0.68367823]
[1765238753092,7.668e-05,90722.0,90721.0,0.68823423]
[1765238753302,7.668e-05,90722.0,90721.0,0.70563423]
[1765238760801,0.00168955,90722.0,90721.0,0.001]
[1765238760986,0.00168955,90722.0,90721.0,0.0184]
[1765238761190,0.00168955,90722.0,90721.0,0.200254]
[1765238761386,0.04106955,90722.0,90721.0,0.182854]
[1765238761629,0.04106955,90722.0,90721.0,0.001]
[1765238761834,0.22047556,90713.0,90712.0,0.54951284]
[1765238762039,0.23747843,90713.0,90712.0,0.214498]
[1765238762213,0.23747843,90713.0,90712.0,0.120219]
[1765238762412,0.22048042,90711.0,90710.0,0.435938]
[1765238762614,0.22209329,90711.0,90709.0,0.07720517]
[1765238762832,0.00161287,90711.0,90710.0,0.127719]
[1765238763714,0.00361287,90711.0,90710.0,0.450719]
[1765238764361,0.00361287,90711.0,90710.0,0.430439]
[1765238764962,0.00161287,90711.0,90710.0,0.430439]
[1765238765140,0.00161287,90711.0,90710.0,0.323]
[1765238765344,0.04299287,90711.0,90710.0,0.324]
[1765238765678,0.04299287,90711.0,90710.0,0.435937]
[1765238767292,0.04299287,90711.0,90710.0,0.324]
[1765238767494,0.04299287,90711.0,90710.0,0.532018]
[1765238767954,0.01900287,90711.0,90710.0,0.532018]
[1765238768568,0.00361287,90711.0,90710.0,0.532018]
[1765238768734,0.26347329,90711.0,90710.0,0.324]
[1765238769533,0.26347329,90711.0,90710.0,0.001]
[1765238770271,0.23948329,90711.0,90710.0,0.001]
[1765238771258,0.22409329,90711.0,90710.0,0.001]
[1765238772094,0.26347329,90711.0,90710.0,0.001]
[1765238772433,0.23948329,90711.0,90710.0,0.001]
[1765238772724,0.25114329,90711.0,90710.0,0.001]
[1765238773662,0.25114329,90711.0,90710.0,0.138146]
[1765238775380,0.23575329,90711.0,90710.0,0.138146]
[1765238775723,0.23575329,90711.0,90710.0,0.001]
[1765238776787,0.01527287,90711.0,90710.0,0.549861]
[1765238777015,0.00361287,90711.0,90710.0,0.566501]
[1765238777399,0.00361287,90711.0,90710.0,0.549861]
[1765238779612,0.00361287,90711.0,90710.0,0.590001]
[1765238780203,0.14776587,90711.0,90710.0,0.590001]
[1765238780990,0.17584587,90711.0,90710.0,0.549861]
[1765238781188,0.20340592,90711.0,90710.0,0.549861]
[1765238781308,0.22765592,90711.0,90710.0,0.001]
[1765238781516,0.20340592,90711.0,90710.0,0.001]
[1765238782632,0.14776587,90711.0,90710.0,0.675158]
[1765238783254,0.14776587,90711.0,90710.0,0.654482]
[1765238783729,0.14776587,90711.0,90710.0,0.636176]
[1765238784980,0.14776587,90711.0,90710.0,0.85665885]
[1765238785822,0.14776587,90711.0,90710.0,0.636176]
[1765238786128,0.14776587,90711.0,90710.0,0.52302]
[1765238787450,0.14776587,90711.0,90710.0,0.530652]
[1765238788107,0.14776587,90711.0,90710.0,0.490512]
[1765238789696,0.14776587,90711.0,90710.0,0.75113485]
[1765238790178,0.146153,90711.0,90710.0,0.75113485]
[1765238791589,0.146153,90711.0,90710.0,0.530652]
[1765238795433,0.36663342,90711.0,90710.0,0.530652]
[1765238796440,0.146153,90711.0,90710.0,0.530652]
[1765238799106,0.146153,90711.0,90710.0,0.875648]
[1765238799579,0.002,90711.0,90710.0,0.875648]
[1765238799735,7.668e-05,90722.0,90721.0,0.56545212]
[1765238799930,7.668e-05,90722.0,90721.0,2.60567212]
[1765238800251,7.668e-05,90722.0,90721.0,2.62917212]